fUST/lending_fUST_20240902
["ID","MTS","AMOUNT","RATE_DAILY","PERIOD"]
[336843052,1725207048869,-1752.22,0.00025205,2]
[336843053,1725207048879,-500.0,0.00025205,2]
[336843054,1725207048888,-1146.64,0.00025205,2]
[336843055,1725207048897,-500.0,0.00025205,2]
[336843056,1725207048913,-2048.68,0.00025205,2]
[336843057,1725207048922,-2371.43,0.00025205,2]
[336843058,1725207048932,-500.0,0.00025205,2]
[336843059,1725207048941,-500.0,0.00025205,2]
[336843060,1725207048951,-2143.51,0.00025205,2]
[336843061,1725207048961,-2265.03,0.00025205,2]
[336843062,1725207048971,-2464.18,0.00025205,2]
[336843063,1725207048980,-500.0,0.00025205,2]
[336843064,1725207048989,-2025.63,0.00025205,2]
[336843065,1725207048999,-871.57,0.00025205,2]
[336843066,1725207049009,-500.0,0.00025205,2]
[336843067,1725207049018,-3908.48,0.00025205,2]
[336843068,1725207049028,-500.0,0.00025205,2]
[336843069,1725207049039,-500.0,0.00025205,2]
[336843070,1725207049048,-1225.31,0.00025205,2]
[336843071,1725207049058,-1144.71,0.00025205,2]
[336843072,1725207049067,-500.0,0.00025205,2]
[336843073,1725207049077,-2746.39,0.00025205,2]
[336843074,1725207049086,-500.0,0.00025205,2]
[336843075,1725207049096,-2582.88,0.00025205,2]
[336843076,1725207049106,-500.0,0.00025205,2]
[336843077,1725207049115,-500.0,0.00025205,2]
[336843078,1725207049126,-500.0,0.00025205,2]
[336843079,1725207049136,-500.0,0.00025205,2]
[336843080,1725207049146,-500.0,0.00025205,2]
[336843081,1725207049158,-3288.89132325,0.00025205,2]
[336843082,1725207049191,-3885.38867675,0.00025205,2]
[336843083,1725207049200,-1939.76,0.00025205,2]
[336843084,1725207049210,-630.55,0.00025205,2]
[336843085,1725207049220,-500.0,0.00025205,2]
[336843086,1725207049231,-4508.87,0.00025205,2]
[336843087,1725207049241,-500.0,0.00025205,2]
[336843088,1725207049250,-986.33565235,0.00025205,2]
[336843089,1725207049582,-500.0,0.00024657,2]
[336843090,1725207049593,-1448.33434765,0.00025205,2]
[336843091,1725207049604,-224.29054358,0.00025205,2]
[336843092,1725207049617,-1615.72945642,0.00025205,2]
[336843093,1725207049627,-1813.39,0.00025205,2]
[336843094,1725207049639,-3000.0,0.0002521,2]
[336843095,1725207049649,-2309.07495346,0.0002521,2]
[336843096,1725207049663,-690.92504654,0.0002521,2]
[336843097,1725207049672,-3000.0,0.0002521,2]
[336843098,1725207049682,-3000.0,0.0002522,2]
[336843099,1725207049692,-3000.0,0.0002522,2]
[336843100,1725207049701,-3000.0,0.0002522,2]
[336843101,1725207049710,-350.26928938,0.00025221,2]
[336843102,1725207049719,-1000.0,0.00025221,2]
[336843103,1725207049729,-500.0,0.00025221,2]
[336843104,1725207049738,-3000.0,0.0002523,2]
[336843105,1725207049748,-3000.0,0.0002523,2]
[336843106,1725207049758,-3000.0,0.0002523,2]
[336843107,1725207049768,-3204.654145,0.0002524,2]
[336843108,1725207049781,-3000.0,0.0002524,2]
[336843109,1725207049791,-3000.0,0.0002524,2]
[336843110,1725207049801,-3000.0,0.0002525,2]
[336843111,1725207049810,-3000.0,0.0002525,2]
[336843112,1725207049821,-151.0,0.0002526,7]
[336843113,1725207049831,-3000.0,0.0002526,2]
[336843114,1725207049842,-3000.0,0.0002526,2]
[336843115,1725207049853,-3000.0,0.0002527,2]
[336843116,1725207049864,-3000.0,0.0002527,2]
[336843117,1725207049873,-3000.0,0.0002528,2]
[336843118,1725207049882,-3000.0,0.0002528,2]
[336843119,1725207049894,-3000.0,0.0002529,2]
[336843120,1725207049905,-3000.0,0.0002529,2]
[336843121,1725207049915,-4134.56,0.000253,14]
[336843122,1725207049925,-3000.0,0.000253,2]
[336843123,1725207049935,-3000.0,0.000253,2]
[336843124,1725207049944,-4165.433403,0.0002531,2]
[336843125,1725207049954,-3000.0,0.0002531,2]
[336843126,1725207049964,-3000.0,0.0002532,2]
[336843127,1725207049973,-3000.0,0.0002533,2]
[336843128,1725207049983,-3000.0,0.0002534,2]
[336843129,1725207049993,-3000.0,0.0002535,2]
[336843130,1725207050003,-3000.0,0.0002536,2]
[336843131,1725207050012,-3000.0,0.0002537,2]
[336843132,1725207050021,-3000.0,0.0002538,2]
[336843133,1725207050031,-151.0,0.0002538,7]
[336843134,1725207050040,-3000.0,0.0002539,2]
[336843135,1725207050050,-3000.0,0.000254,2]
[336843136,1725207050061,-3000.0,0.0002541,2]
[336843137,1725207050070,-3000.0,0.0002542,2]
[336843138,1725207050080,-3000.0,0.0002543,2]
[336843139,1725207050090,-3000.0,0.0002544,2]
[336843140,1725207050099,-3000.0,0.0002545,2]
[336843141,1725207050109,-3000.0,0.0002546,2]
[336843142,1725207050119,-500.0,0.00025479,2]
[336843143,1725207050128,-500.0,0.00025479,2]
[336843144,1725207050138,-500.0,0.00025479,2]
[336843145,1725207050148,-500.0,0.00025479,2]
[336843146,1725207050158,-500.0,0.00025479,2]
[336843147,1725207050168,-500.0,0.00025479,2]
[336843148,1725207050177,-500.0,0.00025479,2]
[336843149,1725207050186,-500.0,0.00025479,2]
[336843150,1725207050195,-500.0,0.00025479,2]
[336843151,1725207050204,-500.0,0.00025479,2]
[336843152,1725207050213,-500.0,0.00025479,2]
[336843153,1725207050224,-500.0,0.00025479,2]
[336843154,1725207050233,-500.0,0.00025479,2]
[336843155,1725207050242,-739.19,0.00025479,2]
[336843156,1725207050251,-500.0,0.00025479,2]
[336843157,1725207050261,-500.0,0.00025479,2]
[336843158,1725207050270,-500.0,0.00025479,2]
[336843159,1725207050280,-500.0,0.00025479,2]
[336843160,1725207050290,-500.0,0.00025479,2]
[336843161,1725207050299,-500.0,0.00025479,2]
[336843162,1725207050308,-546.99,0.00025479,2]
[336843163,1725207050318,-500.0,0.00025479,2]
[336843164,1725207050328,-618.53,0.00025479,2]
[336843165,1725207050337,-772.79,0.00025479,2]
[336843166,1725207050347,-500.0,0.00025479,2]
[336843167,1725207050359,-500.0,0.00025479,2]
[336843168,1725207050368,-500.0,0.00025479,2]
[336843169,1725207050377,-542.6,0.00025479,2]
[336843170,1725207050386,-1094.31,0.00025479,2]
[336843171,1725207050397,-500.0,0.00025479,2]
[336843172,1725207050407,-630.32934669,0.00025479,2]
[336843173,1725207050416,-887.59,0.00025479,2]
[336843174,1725207050425,-500.0,0.00025479,2]
[336843175,1725207050434,-500.0,0.00025479,2]
[336843176,1725207050443,-652.02,0.00025479,2]
[336843177,1725207050453,-500.0,0.00025479,2]
[336843178,1725207050462,-730.49,0.00025479,2]
[336843179,1725207050472,-500.0,0.00025479,2]
[336843180,1725207050481,-500.0,0.00025479,2]
[336843181,1725207050490,-500.0,0.00025479,2]
[336843182,1725207050500,-500.0,0.00025479,2]
[336843183,1725207050509,-500.0,0.00025479,2]
[336843184,1725207050518,-500.0,0.00025479,2]
[336843185,1725207050527,-500.0,0.00025479,2]
[336843186,1725207050537,-500.0,0.00025479,2]
[336843187,1725207050546,-500.0,0.00025479,2]
[336843188,1725207050556,-500.0,0.00025479,2]
[336843189,1725207050567,-5246.83,0.00025479,2]
[336843190,1725207050577,-500.0,0.00025479,2]
[336843191,1725207050586,-500.0,0.00025479,2]
[336843192,1725207050596,-500.0,0.00025479,2]
[336843193,1725207050605,-500.0,0.00025479,2]
[336843194,1725207050615,-231.70243,0.00025479,7]
[336843195,1725207050626,-500.0,0.00025479,2]
[336843196,1725207050637,-500.0,0.00025479,2]
[336843197,1725207050647,-1555.58,0.00025479,2]
[336843198,1725207050658,-508.31,0.00025479,2]
[336843199,1725207050667,-548.27,0.00025479,2]
[336843200,1725207050677,-410.0536776,0.00025479,2]
[336843201,1725207050686,-500.0,0.00025479,2]
[336843202,1725207050696,-500.0,0.00025479,2]
[336843203,1725207050705,-500.0,0.00025479,2]
[336843204,1725207050715,-583.54,0.00025479,2]
[336843205,1725207050725,-500.0,0.00025479,2]
[336843206,1725207050735,-535.77,0.00025479,2]
[336843207,1725207050744,-877.15,0.00025479,2]
[336843208,1725207050753,-888.74,0.00025479,2]
[336843209,1725207050763,-500.0,0.00025479,2]
[336843210,1725207050773,-500.0,0.00025479,2]
[336843211,1725207050786,-500.0,0.00025479,2]
[336843212,1725207050795,-500.0,0.00025479,2]
[336843213,1725207050804,-676.84,0.00025479,2]
[336843214,1725207050813,-500.0,0.00025479,2]
[336843215,1725207050823,-500.0,0.00025479,2]
[336843216,1725207050945,-961.75,0.00025479,2]
[336843217,1725207050955,-500.0,0.00025479,2]
[336843218,1725207050964,-460.75992937,0.00025479,2]
[336843219,1725207050973,-888.46,0.00025479,2]
[336843220,1725207050982,-500.0,0.00025479,2]
[336843221,1725207050991,-500.0,0.00025479,2]
[336843222,1725207051000,-580.5,0.00025479,2]
[336843223,1725207051008,-500.0,0.00025479,2]
[336843224,1725207051017,-500.0,0.00025479,2]
[336843225,1725207051027,-803.99,0.00025479,2]
[336843226,1725207051036,-514.98848906,0.00025479,2]
[336843227,1725207051045,-415.03147948,0.00025479,2]
[336843228,1725207051054,-1643.64,0.00025479,2]
[336843229,1725207051064,-694.92,0.00025479,2]
[336843230,1725207051073,-1085.5,0.00025479,2]
[336843231,1725207051082,-500.0,0.00025479,2]
[336843232,1725207051091,-500.0,0.00025479,2]
[336843233,1725207051102,-500.0,0.00025479,2]
[336843234,1725207051113,-500.0,0.00025479,2]
[336843235,1725207051123,-500.0,0.00025479,2]
[336843236,1725207051133,-500.0,0.00025479,2]
[336843237,1725207051143,-2222.66,0.00025479,2]
[336843238,1725207051152,-621.21,0.00025479,2]
[336843239,1725207051162,-581.910851,0.00025479,7]
[336843240,1725207051171,-581.910851,0.00025479,7]
[336843241,1725207051180,-581.910851,0.00025479,7]
[336843242,1725207051189,-581.910851,0.00025479,7]
[336843243,1725207051199,-500.0,0.00025479,2]
[336843244,1725207051208,-200.0,0.00025479,2]
[336843245,1725207051217,-504.98489087,0.00025479,2]
[336843246,1725207051225,-500.0,0.00025479,2]
[336843247,1725207051234,-624.302703,0.00025479,7]
[336843248,1725207051243,-624.302703,0.00025479,7]
[336843249,1725207051252,-624.302703,0.00025479,7]
[336843250,1725207051261,-624.302703,0.00025479,7]
[336843251,1725207051271,-500.0,0.00025479,2]
[336843252,1725207051280,-1737.72,0.00025479,2]
[336843253,1725207051289,-500.0,0.00025479,2]
[336843254,1725207051300,-500.0,0.00025479,2]
[336843255,1725207051311,-500.0,0.00025479,2]
[336843256,1725207051322,-500.0,0.00025479,2]
[336843257,1725207051331,-500.0,0.00025479,2]
[336843258,1725207051341,-500.0,0.00025479,2]
[336843259,1725207051349,-500.0,0.00025479,2]
[336843260,1725207051359,-500.0,0.00025479,2]
[336843261,1725207051368,-2448.05,0.00025479,2]
[336843262,1725207051378,-433.89256504,0.00025479,2]
[336843263,1725207051387,-500.0,0.00025479,2]
[336843264,1725207051398,-500.0,0.00025479,7]
[336843265,1725207051407,-500.0,0.00025479,2]
[336843266,1725207051416,-500.0,0.00025479,7]
[336843267,1725207051426,-500.0,0.00025479,2]
[336843268,1725207051435,-500.0,0.00025479,2]
[336843269,1725207051444,-1271.5,0.00025479,2]
[336843270,1725207051454,-176.90945779,0.00025479,2]
[336843271,1725207051464,-500.0,0.00025479,7]
[336843272,1725207051473,-500.0,0.00025479,7]
[336843273,1725207051483,-500.0,0.00025479,2]
[336843274,1725207051492,-553.65,0.00025479,2]
[336843275,1725207051502,-543.68,0.00025479,2]
[336843276,1725207051511,-416.61689695,0.00025479,2]
[336843277,1725207051520,-500.0,0.00025479,2]
[336843278,1725207051530,-564.41,0.00025479,2]
[336843279,1725207051539,-1144.44,0.00025479,2]
[336843280,1725207051548,-1526.39,0.00025479,2]
[336843281,1725207051557,-500.0,0.00025479,2]
[336843282,1725207051567,-500.0,0.00025479,2]
[336843283,1725207051576,-500.0,0.00025479,2]
[336843284,1725207051584,-754.03,0.00025479,2]
[336843285,1725207051593,-1104.49,0.00025479,2]
[336843286,1725207051602,-500.0,0.00025479,2]
[336843287,1725207051611,-804.5,0.00025479,2]
[336843288,1725207051623,-590.06,0.00025479,2]
[336843289,1725207051633,-1701.42,0.00025479,2]
[336843290,1725207051642,-500.0,0.00025479,2]
[336843291,1725207051651,-315.93576019,0.00025479,2]
[336843292,1725207051660,-1144.29,0.00025479,2]
[336843293,1725207051670,-500.0,0.00025479,2]
[336843294,1725207051679,-1698.89,0.00025479,2]
[336843295,1725207051688,-903.93,0.00025479,2]
[336843296,1725207051698,-500.0,0.00025479,2]
[336843297,1725207051707,-672.46,0.00025479,2]
[336843298,1725207051716,-511.88836415,0.00025479,2]
[336843299,1725207051726,-500.0,0.00025479,2]
[336843300,1725207051735,-500.0,0.00025479,2]
[336843301,1725207051745,-657.15,0.00025479,2]
[336843302,1725207051756,-500.0,0.00025479,2]
[336843303,1725207051765,-502.76,0.00025479,2]
[336843304,1725207051774,-627.5,0.00025479,2]
[336843305,1725207051788,-2559.06,0.00025479,2]
[336843306,1725207051797,-500.0,0.00025479,2]
[336843307,1725207051806,-2739.7,0.00025479,2]
[336843308,1725207051815,-761.41,0.00025479,2]
[336843309,1725207051825,-500.0,0.00025479,2]
[336843310,1725207051835,-500.0,0.00025479,2]
[336843311,1725207051844,-500.0,0.00025479,2]
[336843312,1725207051855,-2186.58,0.00025479,2]
[336843313,1725207051864,-500.0,0.00025479,2]
[336843314,1725207051874,-1566.88,0.00025479,2]
[336843315,1725207051883,-500.0,0.00025479,2]
[336843316,1725207051891,-1062.55,0.00025479,2]
[336843317,1725207051900,-500.0,0.00025479,2]
[336843318,1725207051911,-500.0,0.00025479,2]
[336843319,1725207051922,-500.0,0.00025479,2]
[336843320,1725207051931,-500.0,0.00025479,2]
[336843321,1725207051941,-500.0,0.00025479,2]
[336843322,1725207051951,-997.13,0.00025479,2]
[336843323,1725207051960,-500.0,0.00025479,2]
[336843324,1725207051969,-500.0,0.00025479,2]
[336843325,1725207051978,-3981.28,0.00025479,2]
[336843326,1725207051988,-649.05,0.00025479,2]
[336843327,1725207051997,-844.54,0.00025479,2]
[336843328,1725207052006,-505.74,0.00025479,2]
[336843329,1725207052015,-615.33,0.00025479,2]
[336843330,1725207052025,-635.94,0.00025479,2]
[336843331,1725207052034,-2445.06,0.00025479,2]
[336843332,1725207052043,-14359.71,0.00025479,2]
[336843333,1725207052053,-500.0,0.00025479,2]
[336843334,1725207052062,-500.0,0.00025479,2]
[336843335,1725207052071,-2783.76,0.00025479,2]
[336843336,1725207052081,-500.0,0.00025479,2]
[336843337,1725207052090,-548.33591432,0.00025479,2]
[336843338,1725207052099,-500.0,0.00025479,2]
[336843339,1725207052108,-373.26231156,0.00025479,2]
[336843340,1725207052118,-623.87,0.00025479,2]
[336843341,1725207052127,-500.0,0.00025479,2]
[336843342,1725207052137,-2497.6,0.00025479,2]
[336843343,1725207052146,-519.01,0.00025479,2]
[336843344,1725207052157,-500.0,0.00025479,2]
[336843345,1725207052173,-1194.95,0.00025479,2]
[336843346,1725207052183,-2454.25,0.00025479,2]
[336843347,1725207052192,-644.82726291,0.00025479,2]
[336843348,1725207052201,-500.0,0.00025479,2]
[336843349,1725207052211,-872.47,0.00025479,2]
[336843350,1725207052220,-3222.53,0.00025479,2]
[336843351,1725207052230,-3922.49,0.00025479,2]
[336843352,1725207052239,-500.0,0.00025479,2]
[336843353,1725207052249,-500.0,0.00025479,2]
[336843354,1725207052258,-500.0,0.00025479,2]
[336843355,1725207052267,-1054.56,0.00025479,2]
[336843356,1725207052276,-500.0,0.00025479,2]
[336843357,1725207052285,-811.13,0.00025479,2]
[336843358,1725207052294,-313.38460656,0.00025479,2]
[336843359,1725207052302,-1746.9,0.00025479,2]
[336843360,1725207052312,-500.0,0.00025479,2]
[336843361,1725207052322,-500.0,0.00025479,2]
[336843362,1725207052331,-500.0,0.00025479,2]
[336843363,1725207052340,-500.0,0.00025479,2]
[336843364,1725207052350,-602.53,0.00025479,2]
[336843365,1725207052359,-817.11,0.00025479,2]
[336843366,1725207052368,-736.47,0.00025479,2]
[336843367,1725207052378,-2679.65,0.00025479,2]
[336843368,1725207052387,-1548.05,0.00025479,2]
[336843369,1725207052396,-500.0,0.00025479,2]
[336843370,1725207052408,-2241.94,0.00025479,2]
[336843371,1725207052417,-2270.83,0.00025479,2]
[336843372,1725207052427,-2005.71,0.00025479,2]
[336843373,1725207052436,-506.4085577,0.00025479,2]
[336843374,1725207052446,-500.0,0.00025479,2]
[336843375,1725207052456,-1373.03,0.00025479,2]
[336843376,1725207052465,-500.0,0.00025479,2]
[336843377,1725207052474,-500.0,0.00025479,2]
[336843378,1725207052483,-894.55,0.00025479,2]
[336843379,1725207052492,-643.57,0.00025479,2]
[336843380,1725207052501,-500.0,0.00025479,2]
[336843381,1725207052511,-500.0,0.00025479,2]
[336843382,1725207052521,-2152.31,0.00025479,2]
[336843383,1725207052530,-912.65,0.00025479,2]
[336843384,1725207052539,-1045.82,0.00025479,2]
[336843385,1725207052549,-500.0,0.00025479,2]
[336843386,1725207052558,-500.0,0.00025479,2]
[336843387,1725207052567,-151.0,0.00025479,7]
[336843388,1725207052576,-778.76,0.00025479,2]
[336843389,1725207052584,-691.36,0.00025479,2]
[336843390,1725207052593,-2384.06,0.00025479,2]
[336843391,1725207052602,-2634.74,0.00025479,2]
[336843392,1725207052611,-1118.44,0.00025479,2]
[336843393,1725207052621,-990.37,0.00025479,2]
[336843394,1725207052630,-952.03,0.00025479,2]
[336843395,1725207052639,-784.2,0.00025479,2]
[336843396,1725207052648,-500.0,0.00025479,2]
[336843397,1725207052664,-584.60689834,0.00025479,4]
[336843398,1725207052673,-12543.28,0.00025479,2]
[336843399,1725207052682,-648.4,0.00025479,2]
[336843400,1725207052691,-1752.22,0.00025479,2]
[336843401,1725207052701,-500.0,0.00025479,2]
[336843402,1725207052710,-1146.64,0.00025479,2]
[336843403,1725207052719,-500.0,0.00025479,2]
[336843404,1725207052728,-2048.68,0.00025479,2]
[336843405,1725207052738,-2371.43,0.00025479,2]
[336843406,1725207052747,-500.0,0.00025479,2]
[336843407,1725207052756,-500.0,0.00025479,2]
[336843408,1725207052766,-2143.51,0.00025479,2]
[336843409,1725207052775,-2265.03,0.00025479,2]
[336843410,1725207052788,-2464.18,0.00025479,2]
[336843411,1725207052797,-2025.63,0.00025479,2]
[336843412,1725207052806,-871.57,0.00025479,2]
[336843413,1725207052815,-500.0,0.00025479,2]
[336843414,1725207052825,-3908.48,0.00025479,2]
[336843415,1725207052835,-500.0,0.00025479,2]
[336843416,1725207052844,-500.0,0.00025479,2]
[336843417,1725207052853,-1225.31,0.00025479,2]
[336843418,1725207052866,-1144.71,0.00025479,2]
[336843419,1725207052876,-500.0,0.00025479,2]
[336843420,1725207052886,-2746.39,0.00025479,2]
[336843421,1725207052895,-2582.88,0.00025479,2]
[336843422,1725207052906,-500.0,0.00025479,2]
[336843423,1725207052915,-542.83832161,0.00025479,2]
[336843424,1725207052924,-500.0,0.00025479,2]
[336843425,1725207052934,-500.0,0.00025479,2]
[336843426,1725207052943,-500.0,0.00025479,2]
[336843427,1725207052953,-7174.28,0.00025479,2]
[336843428,1725207052962,-1939.76,0.00025479,2]
[336843429,1725207052971,-630.55,0.00025479,2]
[336843430,1725207053079,-500.0,0.00025479,2]
[336843431,1725207053089,-4508.87,0.00025479,2]
[336843432,1725207053098,-500.0,0.00025479,2]
[336843433,1725207053108,-2434.67,0.00025479,2]
[336843434,1725207053117,-1840.02,0.00025479,2]
[336843435,1725207053127,-1813.39,0.00025479,2]
[336843436,1725207053136,-1000.0,0.00025521,2]
[336843437,1725207053146,-351.18019124,0.00025521,2]
[336843438,1725207053483,-500.0,0.00024657,2]
[336843439,1725207053492,-500.0,0.00024657,2]
[336843440,1725207053502,-525.71,0.00024931,2]
[336843441,1725207053511,-596.72,0.00024931,2]
[336843442,1725207053520,-500.0,0.00024931,2]
[336843443,1725207053529,-648.81980876,0.00025521,2]
[336843444,1725207053539,-3654.86279446,0.0002571,2]
[336843445,1725207053548,-799.668,0.0002574,2]
[336843446,1725207053557,-500.0,0.00025753,2]
[336843447,1725207053566,-614.5644295,0.00025753,2]
[336843448,1725207053575,-500.0,0.00025753,2]
[336843449,1725207053585,-500.0,0.00025753,2]
[336843450,1725207053595,-500.0,0.00025753,2]
[336843451,1725207053604,-500.0,0.00025753,2]
[336843452,1725207053614,-500.0,0.00025753,2]
[336843453,1725207053623,-500.0,0.00025753,2]
[336843454,1725207053632,-500.0,0.00025753,2]
[336843455,1725207053641,-509.27926709,0.00025753,2]
[336843456,1725207053650,-500.0,0.00025753,2]
[336843457,1725207053661,-500.0,0.00025753,2]
[336843458,1725207053672,-739.19,0.00025753,2]
[336843459,1725207053681,-500.0,0.00025753,2]
[336843460,1725207053691,-500.0,0.00025753,2]
[336843461,1725207053701,-500.0,0.00025753,2]
[336843462,1725207053711,-500.0,0.00025753,2]
[336843463,1725207053720,-500.0,0.00025753,2]
[336843464,1725207053729,-500.0,0.00025753,2]
[336843465,1725207053739,-500.0,0.00025753,2]
[336843466,1725207053748,-618.53,0.00025753,2]
[336843467,1725207053758,-772.79,0.00025753,2]
[336843468,1725207053767,-500.0,0.00025753,2]
[336843469,1725207053777,-500.0,0.00025753,2]
[336843470,1725207053789,-500.0,0.00025753,2]
[336843471,1725207053798,-542.6,0.00025753,2]
[336843472,1725207053808,-1094.31,0.00025753,2]
[336843473,1725207053818,-500.0,0.00025753,2]
[336843474,1725207053827,-887.59,0.00025753,2]
[336843475,1725207053837,-500.0,0.00025753,2]
[336843476,1725207053847,-500.0,0.00025753,2]
[336843477,1725207053856,-625.75372775,0.00025753,2]
[336843485,1725207468123,190.984941,0.00014247,2]
[336843486,1725207502807,302.21432435,0.0002,2]
[336843492,1725207845326,1859.92714115,0.0002,2]
[336843493,1725207888864,302.5460063,0.0002,2]
[336843496,1725208082338,194.465892,0.00014247,2]
[336843501,1725208122056,63892.3594621,0.0002,2]
[336843502,1725208123482,12079.79033343,0.000129,2]
[336843514,1725208162039,500.0,0.00024753,120]
[336843515,1725208162787,500.0,0.00024753,120]
[336843516,1725208163547,518.26,0.00024753,120]
[336843564,1725208231907,-300.0,0.00020376,2]
[336843565,1725208231917,-9086.56220884,0.00020377,2]
[336843570,1725208237892,-292.92220413,0.00020377,2]
[336843572,1725208237905,-1565.43145735,0.00020377,2]
[336843573,1725208237915,-216.782186,0.00020587,2]
[336843574,1725208237925,-194.465892,0.00020707,2]
[336843575,1725208237934,-1319.46519571,0.00020937,2]
[336843576,1725208237951,-21303.94678671,0.00020937,2]
[336843577,1725208237963,-2276.58801758,0.00020937,2]
[336843578,1725208237975,-242.0257153,0.00020975,2]
[336843579,1725208237984,-250.0,0.00021462,2]
[336843580,1725208237994,-250.0,0.0002152,2]
[336843581,1725208238005,-250.0,0.00021579,2]
[336843582,1725208238015,-250.0,0.00021638,2]
[336843583,1725208238024,-250.0,0.00021697,2]
[336843584,1725208238034,-250.0,0.00021756,2]
[336843585,1725208238043,-250.0,0.00021815,2]
[336843586,1725208238052,-250.0,0.00021874,2]
[336843587,1725208238062,-1712.28911816,0.00021919,2]
[336843588,1725208238072,-250.0,0.00021932,2]
[336843589,1725208238081,-250.0,0.00021991,2]
[336843590,1725208238091,-3000.0,0.00022003,2]
[336843591,1725208238100,-250.0,0.0002205,2]
[336843592,1725208238109,-250.0,0.00022109,2]
[336843593,1725208238119,-250.0,0.00022168,2]
[336843594,1725208238128,-250.0,0.00022227,2]
[336843595,1725208238137,-250.0,0.00022286,2]
[336843596,1725208238146,-250.0,0.00022344,2]
[336843597,1725208238156,-250.0,0.00022403,2]
[336843598,1725208238165,-420.0,0.00022414,2]
[336843599,1725208238174,-3390.1715981,0.00022421,2]
[336843600,1725208238184,-250.0,0.00022462,2]
[336843601,1725208238193,-250.0,0.00022521,2]
[336843602,1725208238203,-250.0,0.0002258,2]
[336843603,1725208238216,-192.27015995,0.0002376,2]
[336843604,1725208238225,-360.595996,0.00023836,2]
[336843605,1725208238234,-1000.0,0.000239,2]
[336843606,1725208238244,-1166.19,0.0002399,3]
[336843607,1725208238255,-583.09,0.0002399,3]
[336843608,1725208238264,-291.55,0.0002399,3]
[336843609,1725208238275,-242.95,0.0002399,3]
[336843610,1725208238286,-500.0,0.00023999,2]
[336843611,1725208238296,-316.10226342,0.00023999,2]
[336843612,1725208238306,-245.34437549,0.00023999,2]
[336843613,1725208238315,-79095.98188493,0.00024,2]
[336843614,1725208238324,-2372.65907968,0.00024557,2]
[336843615,1725208238334,-150.112233,0.000246,5]
[336843616,1725208238343,-27996.3039711,0.00024647,3]
[336843617,1725208238354,-587.0,0.00024655,2]
[336843618,1725208238364,-500.0,0.00024656,2]
[336843619,1725208238374,-300.13070324,0.00024656,2]
[336843620,1725208238384,-223.79886768,0.00024656,2]
[336843621,1725208238393,-500.0,0.00024656,2]
[336843622,1725208238403,-500.0,0.00024656,2]
[336843623,1725208238412,-500.0,0.00024656,2]
[336843624,1725208238422,-500.0,0.00024656,2]
[336843625,1725208238431,-500.0,0.00024656,2]
[336843626,1725208238442,-500.0,0.00024656,2]
[336843627,1725208238452,-395.10189774,0.00024656,2]
[336843628,1725208238461,-500.0,0.00024656,2]
[336843629,1725208238471,-500.0,0.00024656,2]
[336843630,1725208238481,-500.0,0.00024656,2]
[336843631,1725208238490,-500.0,0.00024656,2]
[336843632,1725208238501,-200.30497421,0.00024656,2]